fUST/lending_fUST_20250221
["ID","MTS","AMOUNT","RATE_DAILY","PERIOD"]
[353843114,1740089439900,-507.09019103,0.0001378,2]
[353843115,1740089439910,-500.0,0.0001378,2]
[353843116,1740089439919,-500.0,0.0001378,2]
[353843117,1740089439930,-500.0,0.0001378,2]
[353843118,1740089439939,-500.0,0.0001378,2]
[353843119,1740089439949,-500.0,0.0001378,2]
[353843120,1740089439958,-500.0,0.0001378,2]
[353843121,1740089439968,-500.0,0.0001378,2]
[353843122,1740089439978,-674.35,0.0001378,2]
[353843123,1740089439988,-500.0,0.0001378,2]
[353843125,1740089439997,-298.4884716,0.0001378,2]
[353843127,1740089440008,-500.0,0.0001378,2]
[353843128,1740089440017,-500.0,0.0001378,2]
[353843129,1740089440029,-500.0,0.0001378,2]
[353843130,1740089440038,-1063.91,0.0001378,2]
[353843131,1740089440048,-500.0,0.0001378,2]
[353843133,1740089440061,-500.0,0.0001378,2]
[353843134,1740089440070,-500.0,0.0001378,2]
[353843136,1740089440079,-500.0,0.0001378,2]
[353843138,1740089440089,-500.0,0.0001378,2]
[353843140,1740089440099,-500.0,0.0001378,2]
[353843141,1740089440108,-1469.46,0.0001378,2]
[353843143,1740089440117,-500.0,0.0001378,2]
[353843145,1740089440127,-500.0,0.0001378,2]
[353843147,1740089440138,-954.18,0.0001378,2]
[353843149,1740089440148,-500.0,0.0001378,2]
[353843150,1740089440157,-500.0,0.0001378,2]
[353843152,1740089440167,-500.0,0.0001378,2]
[353843153,1740089440177,-500.0,0.0001378,2]
[353843154,1740089440186,-500.0,0.0001378,2]
[353843155,1740089440196,-500.0,0.0001378,2]
[353843156,1740089440205,-500.0,0.0001378,2]
[353843157,1740089440215,-500.0,0.0001378,2]
[353843158,1740089440225,-500.0,0.0001378,2]
[353843159,1740089440234,-500.0,0.0001378,2]
[353843160,1740089440244,-902.79,0.0001378,2]
[353843161,1740089440253,-500.0,0.0001378,2]
[353843162,1740089440262,-500.0,0.0001378,2]
[353843163,1740089440272,-500.0,0.0001378,2]
[353843165,1740089440281,-584.44404744,0.0001378,2]
[353843166,1740089440290,-999.31,0.0001378,2]
[353843168,1740089440300,-1936.81,0.0001378,2]
[353843170,1740089440309,-500.0,0.0001378,2]
[353843171,1740089440318,-973.95,0.0001378,2]
[353843172,1740089440328,-500.0,0.0001378,2]
[353843173,1740089440337,-582.41,0.0001378,2]
[353843174,1740089440346,-500.0,0.0001378,2]
[353843175,1740089440355,-500.0,0.0001378,2]
[353843176,1740089440365,-500.0,0.0001378,2]
[353843177,1740089440374,-500.0,0.0001378,2]
[353843178,1740089440383,-513.92,0.0001378,2]
[353843179,1740089440392,-500.0,0.0001378,2]
[353843181,1740089440401,-500.0,0.0001378,2]
[353843183,1740089440410,-500.0,0.0001378,2]
[353843184,1740089440420,-826.12,0.0001378,2]
[353843185,1740089440429,-1569.04,0.0001378,2]
[353843186,1740089440438,-289.51229172,0.0001378,2]
[353843187,1740089440448,-500.0,0.0001378,2]
[353843188,1740089440456,-500.0,0.0001378,2]
[353843189,1740089440466,-500.0,0.0001378,2]
[353843190,1740089440475,-500.0,0.0001378,2]
[353843191,1740089440484,-500.0,0.0001378,2]
[353843192,1740089440493,-500.0,0.0001378,2]
[353843193,1740089440502,-500.0,0.0001378,2]
[353843194,1740089440511,-500.0,0.0001378,2]
[353843195,1740089440521,-500.0,0.0001378,2]
[353843196,1740089440531,-500.0,0.0001378,2]
[353843197,1740089440540,-613.69090283,0.0001378,2]
[353843198,1740089440550,-500.0,0.0001378,2]
[353843199,1740089440559,-1183.54,0.0001378,2]
[353843200,1740089440569,-500.0,0.0001378,2]
[353843201,1740089440578,-500.0,0.0001378,2]
[353843202,1740089440587,-500.0,0.0001378,2]
[353843203,1740089440596,-500.0,0.0001378,2]
[353843204,1740089440695,-500.0,0.0001378,2]
[353843205,1740089440706,-447.9272633,0.0001378,2]
[353843206,1740089440715,-500.0,0.0001378,2]
[353843207,1740089440725,-500.0,0.0001378,2]
[353843208,1740089440735,-701.5,0.0001378,2]
[353843209,1740089440744,-500.0,0.0001378,2]
[353843210,1740089440754,-500.0,0.0001378,2]
[353843211,1740089440764,-500.0,0.0001378,2]
[353843212,1740089440773,-500.0,0.0001378,2]
[353843213,1740089440782,-897.88,0.0001378,2]
[353843214,1740089440791,-500.0,0.0001378,2]
[353843215,1740089440800,-506.41634077,0.0001378,2]
[353843216,1740089440809,-500.0,0.0001378,2]
[353843217,1740089440818,-500.0,0.0001378,2]
[353843218,1740089440828,-500.0,0.0001378,2]
[353843219,1740089440837,-500.0,0.0001378,2]
[353843220,1740089440846,-861.82,0.0001378,2]
[353843221,1740089440855,-500.0,0.0001378,2]
[353843222,1740089440865,-500.0,0.0001378,2]
[353843223,1740089440874,-512.25,0.0001378,2]
[353843224,1740089440883,-500.0,0.0001378,2]
[353843225,1740089440892,-500.0,0.0001378,2]
[353843226,1740089440901,-500.0,0.0001378,2]
[353843227,1740089440911,-573.69382783,0.0001378,2]
[353843228,1740089440920,-699.81,0.0001378,2]
[353843229,1740089440930,-500.0,0.0001378,2]
[353843230,1740089440939,-500.0,0.0001378,2]
[353843231,1740089440948,-500.0,0.0001378,2]
[353843232,1740089440958,-500.0,0.0001378,2]
[353843233,1740089440968,-500.0,0.0001378,2]
[353843234,1740089440977,-500.0,0.0001378,2]
[353843235,1740089440986,-500.0,0.0001378,2]
[353843236,1740089440995,-810.44,0.0001378,2]
[353843237,1740089441005,-500.0,0.0001378,2]
[353843238,1740089441014,-447.52513472,0.0001378,2]
[353843239,1740089441025,-500.0,0.0001378,2]
[353843240,1740089441034,-1145.58,0.0001378,2]
[353843241,1740089441044,-500.0,0.0001378,2]
[353843242,1740089441054,-500.0,0.0001378,2]
[353843243,1740089441066,-505.77826541,0.0001378,2]
[353843244,1740089441076,-500.0,0.0001378,2]
[353843245,1740089441085,-500.0,0.0001378,2]
[353843246,1740089441094,-500.0,0.0001378,2]
[353843247,1740089441105,-380.47740098,0.0001378,2]
[353843248,1740089441114,-16937.45,0.0001378,2]
[353843249,1740089441123,-2353.82,0.0001378,2]
[353843250,1740089441134,-500.0,0.0001378,2]
[353843251,1740089441143,-500.0,0.0001378,2]
[353843252,1740089441153,-500.0,0.0001378,2]
[353843253,1740089441163,-500.0,0.0001378,2]
[353843254,1740089441172,-500.0,0.0001378,2]
[353843255,1740089441182,-500.0,0.0001378,2]
[353843256,1740089441191,-224.43449184,0.0001378,2]
[353843257,1740089441200,-2336.33,0.0001378,2]
[353843258,1740089441210,-1535.26,0.0001378,2]
[353843259,1740089441219,-500.0,0.0001378,2]
[353843260,1740089441228,-500.0,0.0001378,2]
[353843261,1740089441238,-1723.51,0.0001378,2]
[353843262,1740089441247,-500.0,0.0001378,2]
[353843263,1740089441256,-1779.81,0.0001378,2]
[353843264,1740089441266,-500.0,0.0001378,2]
[353843265,1740089441275,-638.85,0.0001378,2]
[353843266,1740089441284,-500.0,0.0001378,2]
[353843267,1740089441293,-500.0,0.0001378,2]
[353843268,1740089441302,-500.0,0.0001378,2]
[353843269,1740089441311,-504.65954649,0.0001378,2]
[353843270,1740089441320,-500.0,0.0001378,2]
[353843271,1740089441329,-554.72,0.0001378,2]
[353843272,1740089441338,-1489.39,0.0001378,2]
[353843273,1740089441347,-500.0,0.0001378,2]
[353843274,1740089441357,-500.0,0.0001378,2]
[353843275,1740089441366,-500.0,0.0001378,2]
[353843276,1740089441375,-3579.38,0.0001378,2]
[353843277,1740089441385,-500.0,0.0001378,2]
[353843278,1740089441394,-2055.75,0.0001378,2]
[353843279,1740089441403,-53142.99,0.0001378,2]
[353843280,1740089441413,-500.0,0.0001378,2]
[353843281,1740089441422,-500.0,0.0001378,2]
[353843282,1740089441432,-500.0,0.0001378,2]
[353843283,1740089441441,-500.0,0.0001378,2]
[353843284,1740089441450,-4841.94,0.0001378,2]
[353843285,1740089441460,-500.0,0.0001378,2]
[353843286,1740089441469,-500.0,0.0001378,2]
[353843287,1740089441479,-2766.47,0.0001378,2]
[353843288,1740089441489,-500.0,0.0001378,2]
[353843289,1740089441498,-500.0,0.0001378,2]
[353843290,1740089441508,-651.81,0.0001378,2]
[353843291,1740089441518,-782.52,0.0001378,2]
[353843292,1740089441527,-500.0,0.0001378,2]
[353843293,1740089441537,-500.0,0.0001378,2]
[353843294,1740089441546,-9566.41,0.0001378,2]
[353843295,1740089441555,-1623.58,0.0001378,2]
[353843296,1740089441565,-469.62975084,0.0001378,2]
[353843297,1740089441575,-501.11726647,0.0001378,2]
[353843298,1740089441585,-500.0,0.0001378,2]
[353843299,1740089441594,-500.0,0.0001378,2]
[353843300,1740089441604,-500.0,0.0001378,2]
[353843301,1740089441614,-500.0,0.0001378,2]
[353843302,1740089441624,-4875.79,0.0001378,2]
[353843303,1740089441633,-500.0,0.0001378,2]
[353843304,1740089441643,-500.0,0.0001378,2]
[353843305,1740089441652,-500.0,0.0001378,2]
[353843306,1740089441661,-500.0,0.0001378,2]
[353843307,1740089441671,-839.82,0.0001378,2]
[353843308,1740089441681,-500.0,0.0001378,2]
[353843309,1740089441690,-1342.97,0.0001378,2]
[353843310,1740089441700,-500.0,0.0001378,2]
[353843311,1740089441710,-500.0,0.0001378,2]
[353843312,1740089441719,-694.31,0.0001378,2]
[353843313,1740089441729,-4944.72,0.0001378,2]
[353843314,1740089441738,-501.89730355,0.0001378,2]
[353843315,1740089441748,-905.08,0.0001378,2]
[353843316,1740089441757,-503.59832505,0.0001378,2]
[353843317,1740089441767,-771.62,0.0001378,2]
[353843318,1740089441776,-500.0,0.0001378,2]
[353843319,1740089441786,-500.0,0.0001378,2]
[353843320,1740089441796,-500.0,0.0001378,2]
[353843321,1740089441806,-2780.68,0.0001378,2]
[353843322,1740089441815,-597.78,0.0001378,2]
[353843323,1740089441824,-1363.5,0.0001378,2]
[353843324,1740089441834,-500.0,0.0001378,2]
[353843325,1740089441844,-562.63,0.0001378,2]
[353843326,1740089441854,-500.0,0.0001378,2]
[353843327,1740089441864,-500.0,0.0001378,2]
[353843328,1740089441873,-500.0,0.0001378,2]
[353843329,1740089441882,-2880.53,0.0001378,2]
[353843330,1740089441892,-1738.34,0.0001378,2]
[353843331,1740089441901,-819.11,0.0001378,2]
[353843332,1740089441911,-500.0,0.0001378,2]
[353843333,1740089441921,-500.0,0.0001378,2]
[353843334,1740089441931,-500.0,0.0001378,2]
[353843335,1740089441941,-500.0,0.0001378,2]
[353843336,1740089441950,-500.0,0.0001378,2]
[353843337,1740089441960,-769.36,0.0001378,2]
[353843338,1740089441969,-236.52116316,0.0001378,2]
[353843339,1740089441979,-500.0,0.0001378,2]
[353843340,1740089441988,-500.0,0.0001378,2]
[353843341,1740089441998,-500.0,0.0001378,2]
[353843342,1740089442007,-500.0,0.0001378,2]
[353843343,1740089442017,-1497.72,0.0001378,2]
[353843344,1740089442027,-500.0,0.0001378,2]
[353843345,1740089442037,-815.07,0.0001378,2]
[353843346,1740089442047,-500.0,0.0001378,2]
[353843347,1740089442059,-475.43962598,0.0001378,2]
[353843348,1740089442069,-500.0,0.0001378,2]
[353843349,1740089442079,-500.0,0.0001378,2]
[353843350,1740089442089,-500.0,0.0001378,2]
[353843351,1740089442099,-224.02584829,0.0001378,2]
[353843352,1740089442109,-970.94,0.0001378,2]
[353843353,1740089442119,-24177.39,0.0001378,2]
[353843354,1740089442129,-500.0,0.0001378,2]
[353843355,1740089442140,-513.82184903,0.0001378,2]
[353843356,1740089442149,-519.32,0.0001378,2]
[353843357,1740089442159,-518.24860747,0.0001378,2]
[353843358,1740089442169,-8501.64,0.0001378,2]
[353843359,1740089442178,-500.0,0.0001378,2]
[353843360,1740089442187,-500.0,0.0001378,2]
[353843361,1740089442196,-500.0,0.0001378,2]
[353843362,1740089442205,-537.36,0.0001378,2]
[353843363,1740089442215,-2996.07,0.0001378,2]
[353843364,1740089442224,-582.37545583,0.0001378,2]
[353843365,1740089442233,-826.46,0.0001378,2]
[353843366,1740089442242,-693.73,0.0001378,2]
[353843367,1740089442251,-500.0,0.0001378,2]
[353843368,1740089442260,-500.0,0.0001378,2]
[353843369,1740089442269,-916.35,0.0001378,2]
[353843370,1740089442279,-500.0,0.0001378,2]
[353843371,1740089442288,-1134.13,0.0001378,2]
[353843372,1740089442297,-500.0,0.0001378,2]
[353843373,1740089442307,-500.0,0.0001378,2]
[353843374,1740089442316,-2654.74,0.0001378,2]
[353843375,1740089442325,-537.56,0.0001378,2]
[353843376,1740089442334,-865.0,0.0001378,2]
[353843377,1740089442343,-9490.95,0.0001378,2]
[353843378,1740089442353,-500.0,0.0001378,2]
[353843379,1740089442362,-500.0,0.0001378,2]
[353843380,1740089442371,-500.0,0.0001378,2]
[353843381,1740089442381,-500.0,0.0001378,2]
[353843382,1740089442390,-500.0,0.0001378,2]
[353843383,1740089442399,-500.0,0.0001378,2]
[353843384,1740089442408,-500.0,0.0001378,2]
[353843385,1740089442417,-2637.96,0.0001378,2]
[353843386,1740089442427,-500.0,0.0001378,2]
[353843387,1740089442436,-1106.86,0.0001378,2]
[353843388,1740089442445,-500.0,0.0001378,2]
[353843389,1740089442454,-500.0,0.0001378,2]
[353843390,1740089442463,-500.0,0.0001378,2]
[353843391,1740089442473,-389.98335779,0.0001378,2]
[353843392,1740089442482,-500.0,0.0001378,2]
[353843393,1740089442491,-500.0,0.0001378,2]
[353843394,1740089442501,-5265.89,0.0001378,2]
[353843395,1740089442510,-541.66,0.0001378,2]
[353843396,1740089442519,-4153.26,0.0001378,2]
[353843397,1740089442528,-500.0,0.0001378,2]
[353843398,1740089442537,-500.0,0.0001378,2]
[353843399,1740089442547,-151.0,0.000138,2]
[353843400,1740089442556,-300.0,0.000138,4]
[353843403,1740089442650,-3000.0,0.00013845,2]
[353843404,1740089442660,-500.0,0.00013863,2]
[353843405,1740089442669,-500.0,0.00013863,2]
[353843406,1740089442678,-500.0,0.00013863,2]
[353843407,1740089442688,-500.0,0.00013863,2]
[353843409,1740089442697,-500.0,0.00013863,2]
[353843411,1740089442707,-547.01087436,0.00013863,2]
[353843413,1740089442716,-501.68344605,0.00013863,2]
[353843414,1740089442725,-500.0,0.00013863,2]
[353843415,1740089442734,-951.77,0.00013863,2]
[353843416,1740089442743,-500.0,0.00013863,2]
[353843417,1740089442753,-500.0,0.00013863,2]
[353843418,1740089442762,-500.0,0.00013863,2]
[353843420,1740089442771,-500.0,0.00013863,2]
[353843421,1740089442781,-500.0,0.00013863,2]
[353843422,1740089442790,-500.0,0.00013863,2]
[353843423,1740089442799,-500.0,0.00013863,2]
[353843424,1740089442808,-500.0,0.00013863,2]
[353843425,1740089442817,-500.0,0.00013863,2]
[353843426,1740089442827,-501.83873759,0.00013863,2]
[353843427,1740089442836,-500.0,0.00013863,2]
[353843428,1740089442845,-769.29,0.00013863,2]
[353843429,1740089442854,-500.0,0.00013863,2]
[353843430,1740089442863,-500.0,0.00013863,2]
[353843431,1740089442873,-500.0,0.00013863,2]
[353843432,1740089442882,-500.0,0.00013863,2]
[353843433,1740089442891,-500.0,0.00013863,2]
[353843434,1740089442899,-500.0,0.00013863,2]
[353843436,1740089442909,-498.18425921,0.00013863,2]
[353843438,1740089442918,-500.0,0.00013863,2]
[353843439,1740089442927,-500.0,0.00013863,2]
[353843442,1740089442936,-500.0,0.00013863,2]
[353843444,1740089442945,-519.7570156,0.00013863,2]
[353843446,1740089442954,-500.0,0.00013863,2]
[353843447,1740089442963,-500.0,0.00013863,2]
[353843448,1740089442973,-500.0,0.00013863,2]
[353843449,1740089442982,-979.61,0.00013863,2]
[353843451,1740089442991,-659.25,0.00013863,2]
[353843453,1740089443006,-500.0,0.00013863,2]
[353843454,1740089443015,-500.0,0.00013863,2]
[353843455,1740089443024,-500.0,0.00013863,2]
[353843456,1740089443034,-500.0,0.00013863,2]
[353843457,1740089443044,-500.0,0.00013863,2]
[353843459,1740089443055,-1255.21,0.00013863,2]
[353843460,1740089443068,-2152.47,0.00013863,2]
[353843461,1740089443077,-500.0,0.00013863,2]
[353843462,1740089443086,-500.0,0.00013863,2]
[353843463,1740089443095,-500.0,0.00013863,2]
[353843465,1740089443106,-500.0,0.00013863,2]
[353843466,1740089443115,-500.0,0.00013863,2]
[353843467,1740089443124,-951.61,0.00013863,2]
[353843468,1740089443135,-500.0,0.00013863,2]
[353843469,1740089443146,-500.0,0.00013863,2]
[353843470,1740089443155,-500.0,0.00013863,2]
[353843472,1740089443165,-500.0,0.00013863,2]
[353843473,1740089443175,-500.0,0.00013863,2]
[353843475,1740089443184,-674.35,0.00013863,2]
[353843476,1740089443194,-500.0,0.00013863,2]
[353843477,1740089443203,-500.0,0.00013863,2]
[353843478,1740089443212,-500.0,0.00013863,2]
[353843479,1740089443221,-500.0,0.00013863,2]
[353843481,1740089443231,-1063.91,0.00013863,2]
[353843482,1740089443240,-500.0,0.00013863,2]
[353843483,1740089443249,-500.0,0.00013863,2]
[353843484,1740089443258,-500.0,0.00013863,2]
[353843485,1740089443267,-1469.46,0.00013863,2]
[353843486,1740089443276,-500.0,0.00013863,2]
[353843487,1740089443286,-500.0,0.00013863,2]
[353843488,1740089443295,-954.18,0.00013863,2]
[353843489,1740089443305,-500.0,0.00013863,2]
[353843490,1740089443313,-500.0,0.00013863,2]
[353843491,1740089443322,-500.0,0.00013863,2]
[353843492,1740089443331,-500.0,0.00013863,2]
[353843493,1740089443341,-500.0,0.00013863,2]
[353843494,1740089443350,-325.56346102,0.00013863,2]
[353843495,1740089443359,-500.0,0.00013863,2]
[353843496,1740089443368,-902.79,0.00013863,2]
[353843497,1740089443377,-510.30926141,0.00013863,2]
[353843498,1740089443387,-500.0,0.00013863,2]
[353843499,1740089443396,-999.31,0.00013863,2]
[353843500,1740089443405,-1936.81,0.00013863,2]
[353843501,1740089443414,-500.0,0.00013863,2]
[353843502,1740089443423,-973.95,0.00013863,2]
[353843503,1740089443433,-582.41,0.00013863,2]
[353843504,1740089443442,-500.00000001,0.00013863,2]
[353843505,1740089443451,-500.0,0.00013863,2]
[353843506,1740089443461,-500.0,0.00013863,2]
[353843507,1740089443470,-500.0,0.00013863,2]
[353843508,1740089443480,-500.0,0.00013863,2]
[353843509,1740089443490,-826.12,0.00013863,2]
[353843510,1740089443499,-1569.04,0.00013863,2]
[353843511,1740089443508,-500.0,0.00013863,2]
[353843512,1740089443518,-500.0,0.00013863,2]
[353843513,1740089443527,-500.0,0.00013863,2]
[353843514,1740089443536,-500.0,0.00013863,2]
[353843515,1740089443545,-1183.54,0.00013863,2]
[353843516,1740089443555,-500.0,0.00013863,2]
[353843517,1740089443564,-500.0,0.00013863,2]
[353843518,1740089443573,-500.0,0.00013863,2]
[353843519,1740089443583,-500.0,0.00013863,2]
[353843520,1740089443591,-500.0,0.00013863,2]
[353843521,1740089443601,-701.5,0.00013863,2]
[353843522,1740089443610,-415.35110411,0.00013863,2]
[353843523,1740089443619,-500.0,0.00013863,2]
[353843524,1740089443628,-500.0,0.00013863,2]
[353843525,1740089443638,-500.0,0.00013863,2]
[353843526,1740089443647,-897.88,0.00013863,2]
[353843527,1740089443656,-861.82,0.00013863,2]
[353843528,1740089443666,-512.25,0.00013863,2]
[353843529,1740089443676,-500.0,0.00013863,2]
[353843530,1740089443684,-500.0,0.00013863,2]
[353843531,1740089443694,-500.0,0.00013863,2]
[353843532,1740089443703,-699.81,0.00013863,2]
[353843533,1740089443713,-500.0,0.00013863,2]
[353843534,1740089443722,-500.0,0.00013863,2]
[353843535,1740089443731,-500.0,0.00013863,2]
[353843536,1740089443740,-810.44,0.00013863,2]
[353843537,1740089443749,-500.0,0.00013863,2]
[353843538,1740089443759,-500.0,0.00013863,2]
[353843539,1740089443768,-1145.58,0.00013863,2]
[353843540,1740089443777,-500.0,0.00013863,2]
[353843541,1740089443786,-500.0,0.00013863,2]
[353843542,1740089443795,-500.0,0.00013863,2]
[353843543,1740089443804,-16937.45,0.00013863,2]
[353843544,1740089443814,-2353.82,0.00013863,2]
[353843545,1740089443823,-500.0,0.00013863,2]
[353843546,1740089443832,-500.0,0.00013863,2]
[353843547,1740089443841,-500.0,0.00013863,2]
[353843548,1740089443849,-500.0,0.00013863,2]
[353843549,1740089443858,-2336.33,0.00013863,2]
[353843550,1740089443867,-1535.26,0.00013863,2]
[353843551,1740089443876,-500.0,0.00013863,2]
[353843552,1740089443886,-1723.51,0.00013863,2]
[353843553,1740089443895,-1779.81,0.00013863,2]
[353843554,1740089443904,-500.0,0.00013863,2]
[353843555,1740089443913,-638.85,0.00013863,2]
[353843556,1740089443922,-500.0,0.00013863,2]
[353843557,1740089443931,-500.0,0.00013863,2]
[353843558,1740089443940,-181.94,0.00013863,2]
[353843559,1740089443949,-554.72,0.00013863,2]
[353843560,1740089443959,-1489.39,0.00013863,2]
[353843561,1740089443968,-500.0,0.00013863,2]
[353843562,1740089443977,-3579.38,0.00013863,2]
[353843563,1740089443986,-2055.75,0.00013863,2]
[353843564,1740089443996,-53142.99,0.00013863,2]
[353843565,1740089444005,-500.0,0.00013863,2]
[353843566,1740089444015,-4841.94,0.00013863,2]
[353843567,1740089444024,-500.0,0.00013863,2]
[353843568,1740089444034,-2766.47,0.00013863,2]
[353843569,1740089444044,-651.81,0.00013863,2]
[353843570,1740089444054,-782.52,0.00013863,2]
[353843571,1740089444066,-500.0,0.00013863,2]
[353843572,1740089444075,-500.0,0.00013863,2]
[353843573,1740089444084,-9566.41,0.00013863,2]
[353843574,1740089444108,-631.76713462,0.00013863,2]
[353843575,1740089444118,-500.0,0.00013863,2]
[353843576,1740089444128,-500.0,0.00013863,2]
[353843577,1740089444139,-4875.79,0.00013863,2]
[353843578,1740089444149,-407.70227789,0.00013863,2]
[353843579,1740089444158,-500.0,0.00013863,2]
[353843580,1740089444167,-500.0,0.00013863,2]
[353843581,1740089444177,-839.82,0.00013863,2]
[353843582,1740089444187,-500.0,0.00013863,2]
[353843583,1740089444196,-1342.97,0.00013863,2]
[353843584,1740089444205,-500.0,0.00013863,2]
[353843585,1740089444215,-500.0,0.00013863,2]
[353843586,1740089444224,-694.31,0.00013863,2]
[353843587,1740089444234,-4944.72,0.00013863,2]
[353843588,1740089444243,-905.08,0.00013863,2]
[353843589,1740089444252,-771.62,0.00013863,2]
[353843590,1740089444262,-500.0,0.00013863,2]
[353843591,1740089444271,-2780.68,0.00013863,2]
[353843592,1740089444280,-597.78,0.00013863,2]
[353843593,1740089444290,-1363.5,0.00013863,2]
[353843594,1740089444300,-500.0,0.00013863,2]
[353843595,1740089444309,-562.63,0.00013863,2]
[353843596,1740089444318,-500.0,0.00013863,2]
[353843597,1740089444327,-2880.53,0.00013863,2]
[353843598,1740089444336,-1738.34,0.00013863,2]
[353843599,1740089444346,-819.11,0.00013863,2]
[353843600,1740089444437,-501.01678089,0.00013863,2]
[353843601,1740089444447,-500.0,0.00013863,2]
[353843602,1740089444456,-769.36,0.00013863,2]
[353843603,1740089444466,-500.0,0.00013863,2]
[353843604,1740089444475,-500.0,0.00013863,2]
[353843605,1740089444485,-500.0,0.00013863,2]
[353843606,1740089444494,-1497.72,0.00013863,2]
[353843607,1740089444503,-500.0,0.00013863,2]
[353843608,1740089444512,-815.07,0.00013863,2]
[353843609,1740089444522,-500.0,0.00013863,2]
[353843610,1740089444531,-500.0,0.00013863,2]
[353843611,1740089444540,-970.94,0.00013863,2]
[353843612,1740089444550,-24177.39,0.00013863,2]
[353843613,1740089444560,-500.0,0.00013863,2]
[353843614,1740089444569,-519.32,0.00013863,2]
[353843615,1740089444579,-8501.64,0.00013863,2]
[353843616,1740089444589,-500.0,0.00013863,2]
[353843617,1740089444599,-500.0,0.00013863,2]
[353843618,1740089444608,-537.36,0.00013863,2]
[353843619,1740089444618,-2996.07,0.00013863,2]
[353843620,1740089444627,-826.46,0.00013863,2]
[353843621,1740089444636,-693.73,0.00013863,2]
[353843622,1740089444646,-500.0,0.00013863,2]
[353843623,1740089444655,-916.35,0.00013863,2]
[353843624,1740089444665,-500.0,0.00013863,2]
[353843625,1740089444675,-1134.13,0.00013863,2]
[353843626,1740089444685,-500.0,0.00013863,2]
[353843627,1740089444694,-502.34272456,0.00013863,2]
[353843628,1740089444703,-2654.74,0.00013863,2]
[353843629,1740089444713,-537.56,0.00013863,2]
[353843630,1740089444724,-865.0,0.00013863,2]
[353843631,1740089444733,-9490.95,0.00013863,2]
[353843632,1740089444743,-500.0,0.00013863,2]
[353843633,1740089444753,-200.63374824,0.00013863,2]
[353843634,1740089444762,-500.0,0.00013863,2]
[353843635,1740089444772,-2637.96,0.00013863,2]
[353843636,1740089444781,-500.0,0.00013863,2]
[353843637,1740089444791,-1106.86,0.00013863,2]
[353843638,1740089444801,-5265.89,0.00013863,2]
[353843639,1740089444811,-541.66,0.00013863,2]
[353843640,1740089444821,-4153.26,0.00013863,2]
[353843641,1740089444831,-500.0,0.00013863,2]
[353843642,1740089444841,-500.0,0.00013863,2]
[353843643,1740089444850,-151.0,0.000139,2]
[353843644,1740089444860,-2496.1636935,0.00013927,2]
[353843645,1740089444870,-500.0,0.00013945,2]
[353843646,1740089444879,-500.0,0.00013945,2]
[353843647,1740089444889,-500.0,0.00013945,2]
[353843648,1740089444899,-500.0,0.00013945,2]